[Event "1st Serbian League 2022"]
[Site "Vrnjacka Banja"]
[Date "2022.09.27"]
[Round "8.10"]
[White "Arsovic, Zoran"]
[Black "Boskovic, Drasko"]
[Result "1-0"]
[ECO "E94"]
[WhiteElo "2362"]
[BlackElo "2415"]
[Annotator "TA"]
[PlyCount "61"]
[EventDate "2022.09.20"]
[EventType "team-tourn"]
[EventCountry "SRB"]
[SourceTitle "playchess.com"]
[Source "ChessBase"]
[SourceQuality "1"]
[TimeControl "40/5400+30:1800+30"]

{[%evp 16,61,43,48,70,0,0,0,0,-4,26,34,35,0,29,13,9,15,20,9,18,16,86,86,86,81,90,87,93,97,81,81,119,121,121,121,125,120,175,168,229,187,225,212,216,233,195,160]} 1. Nf3 {[%emt 0:00:10]} Nf6 {[%emt 0:00:06]} 2. c4 {[%emt 0:00:25]} g6 {[%emt 0:00:07]} 3. Nc3 {[%emt 0:00:34]} Bg7 {[%emt 0:00:04]} 4. e4 {[%emt 0:02:01]} d6 {[%emt 0:00:20]} 5. d4 {[%emt 1:29:50]} O-O {[%emt 0:00:06]} 6. Be2 {[%emt 0:00:00]} Nbd7 {[%emt 0:00:14]} 7. O-O {[%emt 0:00:00]} e5 {[%emt 0:00:04]} 8. Be3 {[%emt 0:00:00]} Qe7 {[%emt 0:00:14]} 9. Qc2 {[%emt 0:00:00]} c6 {[%emt 0:00:21] E94: King's Indian: Classical: 6 Be2 e5 7 0-0: Various Black 7th moves.} 10. h3 {[%emt 0:00:00] White is more active.} (10. d5 $14) 10... exd4 $11 {[%emt 0:00:52]} 11. Bxd4 {[%emt 0:00:00]} Re8 {[%emt 0:01:30] The position is equal.} 12. Rfe1 {[%emt 0:00:00]} b6 {[%emt 0:00:54]} (12... Nxe4 $2 13. Bxg7 Kxg7 14. Nxe4 $18 (14. Bd3 f5 $18)) (12... c5 $5 {[%cal Rc5d4]} 13. Nd5 Nxd5 14. Bxg7 Nf4 $11) 13. Bf1 {[%emt 0:00:00] [#]} Bb7 $146 {[%emt 0:01:59]} ({Predecessor:} 13... Ne5 14. Nd2 g5 15. Rad1 Nh5 16. Ne2 Qe6 17. Bc3 Qg6 18. Nd4 g4 19. Nf5 gxh3 {0-1 (32) Dudin,G (2474)-Demchenko,A (2654) Warsaw 2021}) 14. a3 {[%emt 0:00:00]} Ne5 {[%emt 0:07:00]} 15. Nxe5 {[%emt 0:00:00]} dxe5 {[%emt 0:00:20]} 16. Be3 {[%emt 0:00:00]} Nh5 {[%emt 0:02:09]} 17. g3 {[%emt 0:00:00]} Bf6 {[%emt 0:00:42]} 18. c5 {[%emt 0:00:00]} Bg5 {[%emt 0:16:54]} (18... b5 $11) 19. Bxg5 $16 {[%emt 0:00:00]} Qxg5 {[%emt 0:00:07]} 20. cxb6 {[%emt 0:00:00]} axb6 {[%emt 0:00:08]} 21. Na4 {[%emt 0:00:00]} b5 {[%emt 0:01:31]} 22. Nc5 {[%emt 0:00:00]} Bc8 {[%emt 0:00:16]} 23. Rad1 {[%emt 0:00:00]} Be6 {[%emt 0:05:51]} 24. Qc3 {[%emt 0:00:00]} Rad8 {[%emt 0:53:13] Against Rd6} 25. Rxd8 {[%emt 0:00:00]} (25. b3 {with more complications.} Rd4 26. a4 Qd8 27. Rd3) 25... Qxd8 {[%emt 0:00:06]} 26. b3 {[%emt 0:00:00]} ({Much weaker is} 26. Qxe5 $6 Bxh3 27. Qc3 Bxf1 28. Kxf1 Nf6 $11) 26... Qb8 {[%emt 0:03:20]} (26... Nf6 $16 {was called for.}) 27. a4 $18 {[%emt 0:00:00] White is clearly better.} b4 {[%emt 0:00:03]} (27... Qd6 $142 28. a5 (28. axb5 cxb5 29. b4 Bd7 $16) 28... Nf6) 28. Qe3 {[%emt 0:00:00]} Bc8 {[%emt 0:03:20]} 29. Rd1 {[%emt 0:03:29]} Qa7 {[%emt 0:00:05]} 30. Kg2 {[%emt 0:01:57]} Ng7 {[%emt 0:00:50] [#]} 31. Nd7 $1 {[%emt 0:01:20][%mdl 512] Weighted Error Value: White=0.09 (flawless) /Black=0.18 (very precise)} 1-0

[Event "1st Serbian League 2022"]
[Site "Vrnjacka Banja"]
[Date "2022.09.27"]
[Round "8.11"]
[White "Zegarac, Vuk"]
[Black "Radusinovic, Lazar"]
[Result "1/2-1/2"]
[ECO "A47"]
[WhiteElo "2336"]
[BlackElo "2308"]
[Annotator "TA"]
[PlyCount "51"]
[EventDate "2022.09.20"]
[EventType "team-tourn"]
[EventCountry "SRB"]
[SourceTitle "playchess.com"]
[Source "ChessBase"]
[SourceQuality "1"]
[TimeControl "40/5400+30:1800+30"]

{[%evp 9,51,14,17,18,18,24,19,22,25,18,14,17,18,24,37,39,71,45,51,31,32,25,29,31,36,22,33,33,51,35,34,36,37,27,27,27,30,20,33,33,35,36,32,31]} 1. d4 {[%emt 0:00:05]} Nf6 {[%emt 0:00:05]} 2. Nf3 {[%emt 0:00:11]} e6 {[%emt 0:00:20]} 3. Bf4 {[%emt 0:00:15]} b6 {[%emt 0:00:08]} 4. e3 {[%emt 0:00:21]} Nh5 {[%emt 0:00:56]} 5. Bg5 {[%emt 0:02:47]} Be7 {[%emt 0:00:06]} 6. Ne5 {[%emt 0:05:35] [#] Hoping for Qf3. A47: 1 d4 Nf6 2 Nf3 b6: Torre, London and Colle Systems.} Nf6 $1 {[%emt 0:00:31]} 7. Qf3 {[%emt 0:02:52] Inhibits Bb7.} c6 {[%emt 0:00:56]} 8. Nd2 {[%emt 0:02:23] The position is equal.} Bb7 {[%emt 0:04:34] [#]} 9. Bxf6 $146 {[%emt 0:10:08]} ({Predecessor:} 9. Bd3 d6 10. Ng4 Nd5 11. Bxe7 Qxe7 12. e4 Nb4 13. O-O h5 14. Ne3 Nxd3 15. cxd3 {0-1 (32) Hoang,T (2464)-Stankovic,M (2424) Hungary 2016}) 9... Bxf6 {[%emt 0:16:44]} 10. Ne4 {[%emt 0:03:46] [#] And now Nd6+ would win. Pair of Knights!} d5 {[%emt 0:06:21]} 11. Nxf6+ {[%emt 0:11:03]} gxf6 {[%emt 0:02:04]} 12. Nd3 {[%emt 0:00:49]} f5 {[%emt 0:04:55]} 13. Nf4 {[%emt 0:04:35] White is more active.} Qe7 {[%emt 0:04:28]} 14. a3 {[%emt 0:03:54] Inhibits Qb4+.} Nd7 {[%emt 0:03:03]} 15. Bd3 {[%emt 0:02:40]} Nf6 {[%emt 0:05:28]} 16. Qe2 {[%emt 0:06:39]} a5 {[%emt 0:03:34]} 17. a4 {[%emt 0:02:50]} Rg8 {[%emt 0:02:43]} 18. c3 {[%emt 0:02:02]} Rg4 {[%emt 0:05:33]} 19. Qc2 {[%emt 0:03:52]} c5 {[%emt 0:05:52]} 20. Bb5+ {[%emt 0:02:20]} Kf8 {[%emt 0:03:35]} 21. Be2 {[%emt 0:01:52]} Rg8 {[%emt 0:03:55]} 22. O-O {[%emt 0:03:26]} Qd6 {[%emt 0:02:28]} 23. Bf3 {[%emt 0:01:34]} cxd4 {[%emt 0:02:13]} 24. cxd4 {[%emt 0:00:13] White is slightly better.} Ba6 {[%emt 0:00:23]} 25. Rfc1 {[%emt 0:01:49]} Rc8 {[%emt 0:00:35]} 26. Qb3 {[%emt 0:04:20] Weighted Error Value: White=0.05 (flawless) /Black=0.04 (flawless)} 1/2-1/2

[Event "1st Serbian League 2022"]
[Site "Vrnjacka Banja"]
[Date "2022.09.27"]
[Round "8.12"]
[White "Todorovic, Goran N"]
[Black "Krstic, Petar"]
[Result "1/2-1/2"]
[ECO "A11"]
[WhiteElo "2305"]
[BlackElo "2290"]
[Annotator "TA"]
[PlyCount "73"]
[EventDate "2022.09.20"]
[EventType "team-tourn"]
[EventCountry "SRB"]
[SourceTitle "playchess.com"]
[Source "ChessBase"]
[SourceQuality "1"]
[TimeControl "40/5400+30:1800+30"]

{[%evp 9,73,0,0,0,17,15,12,12,0,8,7,0,6,-2,0,-2,19,25,25,-13,-19,-21,10,0,0,0,0,-48,-28,-16,17,0,37,54,100,102,121,105,107,93,120,108,154,141,163,110,136,131,215,133,154,0,115,23,48,46,38,0,41,48,50,0,0,0,37,0]} 1. Nf3 {[%emt 0:00:11]} d5 {[%emt 0:00:08]} 2. c4 {[%emt 0:00:42]} c6 {[%emt 0:00:13]} 3. g3 {[%emt 0:00:15]} Nf6 {[%emt 0:00:10]} 4. Bg2 {[%emt 0:00:11]} dxc4 {[%emt 0:02:43]} 5. Qc2 {[%emt 0:00:40]} Qd5 {[%emt 0:01:54]} 6. Na3 {[%emt 0:05:32] A11: English Opening: 1...c6.} b5 {[%emt 0:06:26]} 7. b3 {[%emt 0:06:42]} cxb3 {[%emt 0:00:07]} 8. axb3 {[%emt 0:00:11] The position is equal.} Bb7 {[%emt 0:03:18]} 9. Bb2 $1 {[%emt 0:09:04]} e6 {[%emt 0:08:54]} 10. O-O {[%emt 0:02:02] [#]} Qd8 $146 {[%emt 0:02:04]} ({Predecessor:} 10... a6 11. d4 Be7 12. Ne5 Qd6 13. Rfc1 O-O 14. e4 Rc8 15. Nxf7 Kxf7 16. e5 Qd8 17. exf6 Bxf6 18. Qxh7 Nd7 19. Qh5+ Kg8 20. Rc2 {½-½ (20) Gruner,P (2069)-Fierz,M (2331) Zuerich 2006}) 11. Ng5 {[%emt 0:13:51] [#] aiming for Nxb5.} a6 {[%emt 0:23:43]} 12. Ne4 {[%emt 0:09:57]} Nbd7 {[%emt 0:06:47]} 13. Nxf6+ {[%emt 0:01:21]} gxf6 {[%emt 0:00:31]} 14. Qe4 {[%emt 0:07:29]} h5 {[%emt 0:05:43]} 15. h4 {[%emt 0:07:13]} Bg7 {[%emt 0:03:40]} 16. Rac1 {[%emt 0:08:23]} Rc8 {[%emt 0:02:08]} 17. d4 {[%emt 0:07:42]} f5 {[%emt 0:01:47]} 18. Qb1 {[%emt 0:01:48]} (18. Qd3 $11 {was preferrable.}) 18... Nf6 {[%emt 0:01:40][%cal Of5f4]} 19. Nc2 {[%emt 0:02:38][%cal Ba3c2,Bc2e1,Be1d3,Bd3c5][%mdl 32]} a5 {[%emt 0:04:56] Against Nb4} 20. Ne1 {[%emt 0:00:45][%mdl 1024] White has compensation.} Nd5 {[%emt 0:08:10]} (20... f4 $5 {[%cal Rf4g3]}) 21. Nd3 {[%emt 0:00:34]} Qb6 {[%emt 0:01:08]} (21... Bh6 $14) 22. Nc5 $16 {[%emt 0:00:42]} b4 {[%emt 0:02:30]} 23. Qd3 {[%emt 0:01:52]} Ra8 {[%emt 0:02:43]} 24. e4 {[%emt 0:01:42]} fxe4 {[%emt 0:01:20]} 25. Qxe4 {[%emt 0:00:14][%cal Oc5e6] Threatens to win with Nxe6!} Rh6 {[%emt 0:04:54]} (25... Qc7 $142) 26. Rfe1 {[%emt 0:03:00]} Rd8 {[%emt 0:00:28] [#]} 27. Qf5 {[%emt 0:05:00]} (27. Rc4 $1 $18) 27... Bc8 {[%emt 0:02:41][%cal Od5c3]} 28. Qg5 {[%emt 0:01:07]} Bf8 {[%emt 0:01:36]} (28... Rg6 $16 29. Qxh5 Kf8) 29. Re2 {[%emt 0:02:07]} Qa7 {[%emt 0:01:20]} 30. Bxd5 $2 {[%emt 0:01:12]} (30. Rce1 $16) 30... cxd5 {[%emt 0:01:08]} (30... Rxd5 $11 {keeps the balance.} 31. Re5 Qe7 32. Rxd5 cxd5) 31. Qg8 {[%emt 0:00:23] White is much more active. The black rooks are badly placed.} (31. Rce1 $16) 31... Rg6 {[%emt 0:00:31]} 32. Qh8 {[%emt 0:00:58]} Rh6 {[%emt 0:00:11]} 33. Qg8 {[%emt 0:00:26]} Rg6 {[%emt 0:00:27]} 34. Qh7 {[%emt 0:00:23]} Rh6 {[%emt 0:00:29]} 35. Qg8 {[%emt 0:00:51]} Rg6 {[%emt 0:00:09]} 36. Qh8 {[%emt 0:00:38]} Rh6 {[%emt 0:00:12]} 37. Qg8 {[%emt 0:00:33] Weighted Error Value: White=0.27 (precise) /Black=0.21 (precise)} 1/2-1/2

[Event "1st Serbian League 2022"]
[Site "Vrnjacka Banja"]
[Date "2022.09.27"]
[Round "8.13"]
[White "Sarana, Alexey"]
[Black "Demchenko, Anton"]
[Result "1-0"]
[ECO "E94"]
[WhiteElo "2662"]
[BlackElo "2645"]
[Annotator "TA"]
[PlyCount "123"]
[EventDate "2022.09.20"]
[EventType "team-tourn"]
[EventCountry "SRB"]
[SourceTitle "playchess.com"]
[Source "ChessBase"]
[SourceQuality "1"]
[TimeControl "40/5400+30:1800+30"]

{[%evp 15,123,29,54,52,51,47,55,56,62,38,73,58,67,55,72,40,55,33,43,39,56,41,70,62,63,56,54,53,63,53,72,68,77,70,92,75,81,55,55,55,55,55,111,77,96,51,59,6,20,0,0,0,36,36,41,36,50,39,68,66,128,64,172,172,172,168,172,172,172,139,163,171,148,103,189,177,212,127,196,161,161,161,218,244,244,244,218,208,285,266,302,322,294,281,273,264,419,420,449,408,465,457,598,594,741,743,29978,29979,29991,29992]} 1. d4 {[%emt 0:00:02]} Nf6 {[%emt 0:00:05]} 2. c4 {[%emt 0:00:09]} g6 {[%emt 0:00:05]} 3. Nc3 {[%emt 0:00:09]} Bg7 {[%emt 0:00:06]} 4. e4 {[%emt 0:01:11]} d6 {[%emt 0:00:22]} 5. Be2 {[%emt 0:00:17]} O-O {[%emt 0:00:42]} 6. Be3 {[%emt 0:00:22]} Na6 {[%emt 0:00:50]} 7. Nf3 {[%emt 0:00:59][%cal Bg1f3,Bf3e1,Be1c2,Bc2e3][%mdl 32]} e5 {[%emt 0:00:32]} 8. O-O {[%emt 0:01:02]} (8. d5 Ng4 9. Bg5 f6 10. Bh4 Nh6 11. Nd2 Qe8 12. f3 Nf7 13. a3 c5 14. Nf1 f5 15. Ne3 Bh6 16. Qd3 Bxe3 17. Qxe3 f4 18. Qd2 Bd7 {1-0 (39) Sarana,A (2668)-Demchenko,A (2653) Chess.com INT 2022}) 8... Qe7 {[%emt 0:00:38][%cal Of6e4] Recently 8...c6 got a lot of attention.} 9. d5 {[%emt 0:08:13] E94: King's Indian: Classical: 6 Be2 e5 7 0-0: Various Black 7th moves.} Ng4 {[%emt 0:08:21]} 10. Bg5 {[%emt 0:01:05]} f6 {[%emt 0:00:06]} 11. Bh4 {[%emt 0:01:18] White is slightly better.} Nh6 {[%emt 0:06:30] [#]} 12. Ne1 $146 {[%emt 0:01:10]} ({Predecessor:} 12. Nd2 c5 13. g4 Nf7 14. a3 Bh6 15. Rb1 Bd7 16. b4 b6 17. Kg2 Nc7 18. Qc2 {0-1 (74) Vedmediuc,S (2475)-Bernadskiy,V (2580) Mamaia 2021}) 12... c5 {[%emt 0:03:07]} 13. Nc2 {[%emt 0:03:06]} Bd7 {[%emt 0:04:20]} 14. Ne3 {[%emt 0:02:45]} Nc7 {[%emt 0:01:34]} 15. h3 {[%emt 0:03:00]} Rfb8 {[%emt 0:08:57]} 16. a3 {[%emt 0:01:20]} a5 {[%emt 0:00:31]} 17. Qc2 {[%emt 0:04:07]} Nf7 {[%emt 0:06:10]} 18. Nb5 {[%emt 0:05:20]} Rc8 {[%emt 0:04:30]} 19. Nxc7 {[%emt 0:01:57]} Rxc7 {[%emt 0:00:02]} 20. b4 {[%emt 0:00:17]} b6 {[%emt 0:11:36]} 21. bxc5 {[%emt 0:01:11]} bxc5 {[%emt 0:00:04]} 22. Rab1 {[%emt 0:04:31]} h5 {[%emt 0:00:24]} 23. Rb6 {[%emt 0:00:45]} Bh6 {[%emt 0:00:23]} 24. Rfb1 {[%emt 0:00:15]} Ng5 {[%emt 0:02:45]} 25. Rb8+ {[%emt 0:03:07]} Rc8 {[%emt 0:08:21]} 26. Rxa8 {[%emt 0:03:08]} Rxa8 {[%emt 0:00:01]} 27. Rb7 {[%emt 0:00:12][%cal Oe2h5] Black must now prevent Bxh5!} Qd8 {[%emt 0:08:36]} 28. Qb1 {[%emt 0:01:11]} Be8 {[%emt 0:01:45]} (28... Nf7 $14) 29. Bd3 {[%emt 0:06:52] White is much more active.} a4 {[%emt 0:01:23]} 30. Bc2 {[%emt 0:05:30]} Kf8 {[%emt 0:02:52]} 31. Rb6 {[%emt 0:07:35]} (31. Nd1 $14) 31... Nf7 $11 {[%emt 0:00:52]} 32. Nd1 {[%emt 0:07:10]} Bd2 {[%emt 0:02:13] ...g5 is the strong threat.} (32... g5 $5 33. Bg3 $8 h4 $11) 33. Rb7 {[%emt 0:00:29]} Kg7 {[%emt 0:01:39]} (33... g5 $5 {[%cal Rg5h4]} 34. Bg3 h4 $11) 34. f3 {[%emt 0:00:38]} Bd7 {[%emt 0:05:08]} 35. Bd3 {[%emt 0:03:12]} Bc8 {[%emt 0:02:13]} 36. Rb2 {[%emt 0:00:19]} Qa5 {[%emt 0:01:26]} 37. Kf1 {[%emt 0:01:24]} g5 {[%emt 0:05:21]} ({Better is} 37... Bd7 $14) 38. Bf2 {[%emt 0:00:27]} (38. Ke2 $16) 38... g4 {[%emt 0:00:13]} ({Black should try} 38... h4 $14) 39. fxg4 $18 {[%emt 0:02:11]} hxg4 {[%emt 0:00:01]} 40. h4 {[%emt 0:00:05]} Bh6 {[%emt 0:04:32]} 41. g3 {[%emt 0:32:19]} Bd7 {[%emt 0:02:16]} 42. Rb7 {[%emt 0:00:00]} Ra7 {[%emt 0:02:17]} 43. Rb8 {[%emt 0:00:00]} Ra8 {[%emt 0:01:15]} 44. Rb6 {[%emt 0:00:00]} Re8 {[%emt 0:01:11]} (44... Ra6 $16 45. Rb2 (45. Rb7 Ra7 $16) 45... Ra8) 45. Rb7 {[%emt 0:00:00]} Bc8 {[%emt 0:03:32]} 46. Rb8 {[%emt 0:00:00]} (46. Be1 $18 Qa8 47. Rc7) 46... Qc7 {[%emt 0:05:12]} (46... Rf8 $16 47. Qb2 Ba6) 47. Nc3 {[%emt 0:00:00]} Bd2 {[%emt 0:03:53]} 48. Nxa4 {[%emt 0:00:00]} Ba5 {[%emt 0:04:26]} (48... Qa7 {was called for.}) 49. Ra8 {[%emt 0:00:00] [#] Hoping for Qb5.} Bd7 {[%emt 0:00:13] Prevents Qb5.} 50. Rxe8 {[%emt 0:00:00]} Bxe8 {[%emt 0:00:01]} 51. Qb3 {[%emt 0:00:00]} f5 {[%emt 0:01:58]} 52. exf5 {[%emt 0:00:00]} e4 {[%emt 0:00:04]} 53. Bxe4 {[%emt 0:00:00]} Qe7 {[%emt 0:00:02]} 54. Bc2 {[%emt 0:00:00]} Qf6 {[%emt 0:02:05]} 55. Nb2 {[%emt 0:02:16]} Ne5 {[%emt 0:01:34]} (55... Bd7 $142 56. Nd3 Bxf5) 56. Qe3 {[%emt 0:00:57]} Bd7 {[%emt 0:03:39]} 57. Qf4 {[%emt 0:01:36]} Kf7 {[%emt 0:00:53]} 58. Kg2 {[%emt 0:01:20]} Nf3 {[%emt 0:01:36]} 59. Qxg4 {[%emt 0:01:04]} Ne1+ {[%emt 0:02:19]} 60. Bxe1 {[%emt 0:00:06]} Qxb2 {[%emt 0:00:05]} 61. Qg6+ {[%emt 0:00:09]} Kf8 {[%emt 0:00:23] [#]} 62. f6 $1 {[%emt 0:00:10] Weighted Error Value: White=0.14 (very precise) /Black=0.41} 1-0

[Event "1st Serbian League 2022"]
[Site "Vrnjacka Banja"]
[Date "2022.09.27"]
[Round "8.14"]
[White "Atalik, Suat"]
[Black "Ivic, Velimir"]
[Result "1/2-1/2"]
[ECO "D76"]
[WhiteElo "2436"]
[BlackElo "2553"]
[Annotator "TA"]
[PlyCount "53"]
[EventDate "2022.09.20"]
[EventType "team-tourn"]
[EventCountry "SRB"]
[SourceTitle "playchess.com"]
[Source "ChessBase"]
[SourceQuality "1"]
[TimeControl "40/5400+30:1800+30"]

{[%evp 18,53,18,18,45,30,29,16,22,20,22,0,0,0,0,0,0,0,0,4,12,0,0,0,0,0,0,0,0,0,0,0,0,0,0,0,0,0]} 1. d4 {[%emt 0:00:07]} Nf6 {[%emt 0:00:13]} 2. c4 {[%emt 0:00:23]} g6 {[%emt 0:00:13]} 3. Nc3 {[%emt 0:00:25]} d5 {[%emt 0:00:12]} 4. cxd5 {[%emt 0:00:56]} Nxd5 {[%emt 0:00:06]} 5. g3 {[%emt 0:00:16]} Bg7 {[%emt 0:01:32]} 6. Bg2 {[%emt 0:00:20]} Nb6 {[%emt 0:00:53]} 7. Nf3 {[%emt 0:00:15]} Nc6 {[%emt 0:01:32]} 8. O-O {[%emt 0:02:13]} O-O {[%emt 0:03:21]} 9. e3 {[%emt 0:03:43]} e5 {[%emt 0:01:29]} 10. d5 {[%emt 0:00:17]} e4 {[%emt 0:00:32] D76: Fianchetto Grünfeld: Main Line with 7...Nb6.} (10... Ne7 {feels hotter.} 11. e4 Bg4 12. h3 Bxf3 13. Qxf3 c6) 11. dxc6 {[%emt 0:00:57]} Qxd1 $1 {[%emt 0:00:13]} 12. Nxd1 {[%emt 0:00:21] [#] Nd4 is the strong threat.} exf3 {[%emt 0:00:22] The position is equal.} 13. Bxf3 {[%emt 0:00:44]} bxc6 {[%emt 0:00:37]} 14. Bxc6 {[%emt 0:02:39]} Rb8 {[%emt 0:00:34] [#]} 15. Bd2 $146 {[%emt 0:04:27]} ({Predecessor:} 15. Be4 Ba6 16. Re1 Rfe8 17. Bc2 Nc4 18. Rb1 Red8 19. b3 Ne5 20. Kg2 Nd3 21. Bd2 {0-1 (40) Yashtylov,A (2295)-Vokarev,S (2485) Omsk/Perm 1998}) 15... Ba6 {[%emt 0:04:37]} 16. Re1 {[%emt 0:00:59]} Nc4 {[%emt 0:01:10][%csl LRb2,LRd2]} 17. Bc3 {[%emt 0:00:18]} Bxc3 {[%emt 0:06:49]} 18. Nxc3 {[%emt 0:00:28] Black should prevent b3.} Ne5 {[%emt 0:00:20]} 19. Be4 {[%emt 0:08:57]} Rxb2 {[%emt 0:00:30]} 20. Rab1 {[%emt 0:08:35]} Rfb8 {[%emt 0:01:15]} 21. Rxb2 {[%emt 0:01:34]} Rxb2 {[%emt 0:00:07]} 22. Rb1 {[%emt 0:01:00]} Rxb1+ {[%emt 0:07:51]} 23. Bxb1 {[%emt 0:01:35]} Nf3+ {[%emt 0:04:42]} 24. Kg2 {[%emt 0:00:18]} Ne1+ {[%emt 0:08:50]} 25. Kg1 {[%emt 0:00:16]} Nf3+ {[%emt 0:02:41]} 26. Kg2 {[%emt 0:00:05]} Ne1+ {[%emt 0:00:03]} 27. Kg1 {[%emt 0:00:22] Weighted Error Value: White=0.02 (flawless) /Black=0.02 (flawless)} 1/2-1/2